bitfinex/quotes_ETHUSD_20241119
["timestamp","ask_amount","ask_price","bid_price","bid_amount"]
[1732029797331,3.61119,3091.1,3091.0,0.08]
[1732029799018,13.59109665,3091.1,3091.0,0.08]
[1732029799216,10.24048841,3091.1,3091.0,0.08]
[1732029799511,13.58345871,3091.1,3091.0,0.08]
[1732029799683,10.23048841,3091.1,3091.0,0.08]
[1732029800612,6.61119,3091.1,3091.0,0.08]
[1732029801785,3.23509,3091.1,3091.0,0.08]
[1732029801991,3.23504,3091.2,3091.0,0.08]
[1732029802189,3.23488,3091.3,3091.0,0.08]
[1732029802410,3.23478,3091.4,3091.0,1.182532]
[1732029802722,3.235,3091.2,3091.0,1.182532]
[1732029802926,3.23478,3091.4,3091.0,0.08]
[1732029803425,3.23509,3091.1,3091.0,0.08]
[1732029804120,3.23496,3091.3,3091.0,0.08]
[1732029804332,3.23473,3091.5,3091.0,0.08]
[1732029804635,3.23448,3091.7,3091.1,4.05594]
[1732029804842,3.23448,3091.7,3091.2,3.23497]
[1732029805007,3.23429,3091.9,3091.4,3.23477]
[1732029805199,3.23429,3091.9,3091.5,0.378477]
[1732029805414,3.23448,3091.7,3091.5,0.378477]
[1732029805667,3.23448,3091.7,3091.2,0.55]
[1732029805944,0.3761,3092.2,3091.2,3.78492]
[1732029806151,3.23455,3091.7,3091.3,0.460596]
[1732029806296,3.23478,3091.4,3091.1,0.8209]
[1732029806498,3.23489,3091.3,3091.1,0.8209]
[1732029806859,3.23498,3091.2,3091.0,0.08]
[1732029807144,3.23509,3091.1,3091.0,0.08]
[1732029808357,3.23578,3090.5,3089.8,3.23642]
[1732029808523,3.61129,3091.0,3090.0,3.23624]
[1732029808524,3.23568,3090.6,3090.0,3.23624]
[1732029809650,3.2359,3090.4,3089.9,4.05587]
[1732029809853,3.23607,3090.2,3090.0,0.55]
[1732029810167,3.23607,3090.2,3089.9,0.8196]
[1732029810710,3.2359,3090.4,3089.9,0.8196]
[1732029811143,3.23609,3090.2,3089.9,0.8196]
[1732029811338,3.23587,3090.4,3089.9,0.8196]
[1732029811724,3.23587,3090.4,3089.9,4.05594]
[1732029812318,3.23587,3090.4,3089.9,0.8196]
[1732029812647,3.23586,3090.4,3089.9,0.8196]
[1732029812961,3.23563,3090.6,3090.0,0.55]
[1732029813141,3.23553,3090.7,3090.1,3.23604]
[1732029813452,3.23562,3090.6,3090.1,3.23604]
[1732029813656,3.23562,3090.6,3090.0,0.55]
[1732029813816,3.23588,3090.4,3090.0,0.55]
[1732029814520,3.23562,3090.6,3090.1,3.2361]
[1732029814918,3.23562,3090.6,3090.0,4.24677]
[1732029815342,3.23562,3090.6,3090.1,3.23606]
[1732029815828,3.23564,3090.6,3090.1,3.23606]
[1732029816015,3.23575,3090.5,3090.0,1.01059]
[1732029816373,3.23583,3090.4,3090.0,0.55]
[1732029816660,3.23545,3090.8,3090.0,0.55]
[1732029816857,1.294175,3091.2,3090.0,0.55]
[1732029816858,3.23518,3091.1,3090.4,3.23581]
[1732029817041,3.23524,3091.0,3090.4,0.55]
[1732029817241,3.23546,3090.8,3090.4,0.55]
[1732029817762,3.61168,3090.7,3090.2,0.55]
[1732029817943,3.23558,3090.7,3090.0,0.55]
[1732029818130,3.23625,3090.0,3089.8,0.8184]
[1732029818319,3.2362,3090.1,3089.8,0.8184]
[1732029818797,3.23599,3090.3,3089.8,0.8184]
[1732029819063,3.23599,3090.3,3089.8,4.05482]
[1732029819262,3.23578,3090.5,3089.9,3.23632]
[1732029819413,0.3761,3090.8,3090.0,0.55]
[1732029819767,3.23536,3090.9,3090.4,0.55]
[1732029819968,3.23536,3090.9,3090.3,0.55]
[1732029820253,3.23529,3091.0,3090.5,0.55]
[1732029820446,3.23511,3091.1,3090.6,0.8125]
[1732029820644,3.23511,3091.1,3090.6,4.04806]
[1732029820844,3.2349,3091.3,3090.6,4.04806]
[1732029820845,3.2349,3091.3,3090.7,3.23544]
[1732029821177,3.23502,3091.2,3090.7,3.23544]
[1732029821464,3.23502,3091.2,3090.6,4.04807]
[1732029821618,3.23473,3091.5,3090.7,0.1741076]
[1732029821820,3.23494,3091.3,3090.8,0.55]
[1732029822054,3.23494,3091.3,3090.8,1.02721776]
[1732029822261,3.23509,3091.1,3090.8,1.02721776]
[1732029822468,3.2345,3091.7,3090.6,0.8125]
[1732029822704,3.23535,3090.9,3090.6,0.8125]
[1732029823354,3.0,3090.9,3089.2,0.7642]
[1732029823558,3.23589,3090.4,3089.8,3.23638]
[1732029823792,3.0,3090.8,3089.8,3.23638]
[1732029823971,3.23589,3090.4,3089.8,3.23638]
[1732029824172,3.23584,3090.4,3089.9,4.335678]
[1732029824372,3.23578,3090.5,3089.9,0.7757]
[1732029824603,3.23519,3091.0,3090.0,0.55]
[1732029824798,3.23612,3090.2,3090.0,0.55]
[1732029824963,3.23556,3090.7,3090.0,0.55]
[1732029825164,3.23537,3090.9,3090.2,0.55]
[1732029825394,3.23554,3090.7,3090.2,0.73757]
[1732029825556,3.23554,3090.7,3090.2,0.55]
[1732029826098,3.23541,3090.8,3090.2,0.55]
[1732029826329,3.23552,3090.7,3090.2,3.78601]
[1732029826472,3.23536,3090.9,3090.3,3.23593]
[1732029826661,3.23578,3090.5,3090.2,1.329775]
[1732029826860,3.01,3091.0,3089.6,4.00678]
[1732029827104,3.0,3091.0,3089.8,3.23644]
[1732029827284,3.23595,3090.3,3089.8,3.23644]
[1732029827609,3.23589,3090.4,3089.8,3.99964239]
[1732029827760,3.23567,3090.6,3089.9,3.23632]
[1732029828107,3.23575,3090.5,3090.0,3.23623]
[1732029828257,3.3861,3091.1,3089.9,0.72359624]
[1732029828461,3.23617,3090.1,3089.6,1.15896387]
[1732029828707,3.23625,3090.0,3089.6,0.7702]
[1732029829302,3.23604,3090.2,3089.6,0.7702]
[1732029829303,3.23614,3090.1,3089.6,4.00684]
[1732029829514,3.23589,3090.4,3089.7,0.55]
[1732029829805,3.23589,3090.4,3089.9,3.78626]
[1732029830114,3.23589,3090.4,3090.0,0.702265]
[1732029830331,3.23572,3090.5,3090.0,0.702265]
[1732029830476,3.23584,3090.4,3089.9,3.78632]
[1732029830817,3.3761,3091.1,3090.2,1.326]
[1732029831114,3.23537,3090.9,3090.2,1.326]
[1732029831332,3.23567,3090.6,3090.2,1.326]
[1732029831479,3.23567,3090.6,3090.2,1.782222]
[1732029831681,3.23541,3090.8,3090.2,4.56202]
[1732029831881,3.23539,3090.9,3090.3,3.23589]
[1732029832179,3.23519,3091.1,3090.5,0.55]
[1732029832376,3.2352,3091.0,3090.3,0.55]
[1732029832705,3.2352,3091.0,3090.3,3.78592]
[1732029833021,3.23536,3090.9,3090.5,0.55]
[1732029833254,3.23593,3090.3,3090.2,0.776]
[1732029833516,3.23613,3090.2,3089.9,0.7619]
[1732029833714,3.23612,3090.2,3089.9,0.7619]
[1732029834129,3.23624,3090.0,3089.9,0.7619]
[1732029834328,3.23641,3089.9,3089.5,0.7619]
[1732029835047,0.3761,3090.7,3089.5,0.7619]
[1732029835048,3.23651,3089.8,3089.5,0.7619]
[1732029835334,3.2363,3090.0,3089.6,0.55]
[1732029835486,3.23613,3090.2,3089.6,3.78664]
[1732029835825,3.23613,3090.2,3089.6,0.55]
[1732029836040,3.23625,3090.0,3089.6,0.55]
[1732029836595,3.23583,3090.4,3089.6,4.565202]
[1732029836828,3.23596,3090.3,3089.9,0.55]
[1732029836990,3.23605,3090.2,3089.7,3.2365]
[1732029837189,3.23605,3090.2,3089.8,0.55]
[1732029837673,3.23605,3090.2,3089.7,3.78655]
[1732029837929,3.23605,3090.2,3089.7,0.55]
[1732029838119,3.23619,3090.1,3089.6,3.78666]
[1732029838442,6.47175,3090.4,3089.7,3.23647]
[1732029838600,3.23601,3090.3,3089.6,3.78666]
[1732029838787,3.23604,3090.2,3089.6,4.241516]
[1732029838995,3.23604,3090.2,3089.7,3.23655]
[1732029839245,3.23604,3090.2,3089.6,4.241436]
[1732029839427,3.23585,3090.4,3089.6,1.004856]
[1732029839589,3.23585,3090.4,3089.8,3.23639]
[1732029839787,6.47177,3090.4,3089.9,0.55]
[1732029840027,3.23597,3090.3,3089.9,0.55]
[1732029840240,3.23589,3090.4,3089.7,0.55]
[1732029840537,3.23601,3090.3,3089.8,3.23643]
[1732029840688,3.23591,3090.4,3089.9,0.55]
[1732029840886,3.2359,3090.4,3089.7,3.78647]
[1732029841124,3.23601,3090.3,3089.7,4.241307]
[1732029841701,3.2359,3090.4,3089.9,0.55]
[1732029841902,6.47181,3090.4,3089.9,0.55]
[1732029842118,3.23567,3090.6,3090.2,0.55]
[1732029842317,3.33918967,3090.7,3090.2,0.55]
[1732029842521,3.33918967,3091.1,3090.6,3.7856]
[1732029842729,6.57412967,3091.3,3090.7,0.46082]
[1732029843034,3.2352,3091.0,3090.6,0.55]
[1732029843205,3.33918967,3091.2,3090.6,0.55]
[1732029843543,3.33918967,3091.2,3090.5,0.8226]
[1732029843692,3.23541,3090.8,3090.5,0.8226]
[1732029843887,3.23546,3090.8,3090.5,0.8226]
[1732029844130,3.23525,3091.0,3090.5,0.8226]
[1732029844332,3.33918967,3091.2,3090.6,0.55]
[1732029844544,3.23543,3090.8,3090.2,1.3391]
[1732029844697,3.23543,3090.8,3090.3,3.23592]
[1732029845034,3.33918967,3090.9,3090.5,3.23569]
[1732029845236,6.57440967,3091.0,3090.5,3.23569]
[1732029845448,6.57440967,3091.0,3090.5,6.47134]
[1732029845601,6.57440967,3091.0,3090.5,3.23564]
[1732029845602,3.23522,3091.0,3090.5,3.23564]
[1732029845797,3.33918967,3091.1,3090.6,3.2356]
[1732029846042,3.23524,3091.0,3090.4,3.78572]
[1732029846227,3.23524,3091.0,3090.4,0.55]
[1732029846435,3.23524,3091.0,3090.5,3.23571]
[1732029846757,3.33918967,3091.1,3090.3,0.55]
[1732029846943,3.23557,3090.7,3090.3,0.55]
[1732029847138,3.23564,3090.6,3090.3,0.55]
[1732029847442,3.23557,3090.7,3090.3,0.55]
[1732029847443,3.23553,3090.7,3090.3,0.55]
[1732029847831,3.2355,3090.8,3090.3,0.55]
[1732029848034,3.23554,3090.7,3090.3,0.55]
[1732029848343,3.2357,3090.6,3090.3,0.55]
[1732029848541,3.33918967,3090.8,3090.3,0.55]
[1732029848742,3.23548,3090.8,3090.3,0.55]
[1732029849461,3.34495888,3090.9,3090.3,0.55]
[1732029849611,3.34495888,3090.9,3090.5,0.55]
[1732029849957,3.34495888,3091.1,3090.5,0.55]
[1732029850246,3.34495888,3091.1,3090.2,0.7891]
[1732029850247,3.34495888,3091.1,3090.3,0.55]
[1732029850558,3.23531,3090.9,3090.3,3.78592]
[1732029850718,3.34495888,3091.1,3090.5,3.78571]
[1732029850719,3.34495888,3091.0,3090.5,3.78571]
[1732029850923,3.34495888,3091.0,3090.7,0.55]
[1732029851132,3.34495888,3091.1,3090.8,0.7608]
[1732029852512,3.34495888,3091.2,3091.1,0.55]
[1732029852843,3.34495888,3091.4,3091.1,0.55]
[1732029853040,3.34495888,3091.4,3091.0,0.55]
[1732029853343,3.34495888,3091.5,3091.2,0.55]
[1732029853762,6.57955888,3091.6,3091.2,0.55]
[1732029853939,3.34495888,3091.6,3091.2,3.78496]
[1732029854304,3.23458,3091.6,3091.2,0.55]
[1732029855709,3.34495888,3091.8,3091.3,3.23482]
[1732029856022,3.34495888,3091.8,3090.8,0.7608]
[1732029856023,3.34495888,3092.2,3092.0,3.78415]
[1732029856220,6.57868888,3092.4,3092.0,0.55]
[1732029856518,6.57868888,3092.4,3091.9,0.55]
[1732029856519,3.34495888,3092.4,3091.9,0.55]
[1732029856743,6.57869888,3092.4,3091.9,0.55]
[1732029857060,3.34495888,3092.5,3092.0,3.23414]
[1732029857209,3.23375,3092.4,3091.9,3.78425]
[1732029857604,3.23375,3092.4,3091.8,0.55]
[1732029857816,3.23375,3092.4,3092.0,0.55]
[1732029858246,3.23375,3092.4,3091.8,3.78432]
[1732029858905,3.23387,3092.3,3091.8,0.55]
[1732029859133,3.23364,3092.5,3092.0,0.55]
[1732029859332,3.23365,3092.5,3092.0,0.55]
[1732029859853,3.23348,3092.7,3092.1,3.23395]
[1732029860010,3.23353,3092.6,3092.2,0.55]
[1732029860369,3.23353,3092.6,3092.0,3.78412]
[1732029860663,3.23326,3092.9,3092.0,0.55]
[1732029860827,3.23326,3092.9,3092.3,0.55]
[1732029860828,3.23339,3092.8,3092.3,0.55]
[1732029861276,3.23326,3092.9,3092.3,3.78382]
[1732029861572,3.23303,3093.1,3092.5,0.55]
[1732029861721,3.23309,3093.1,3092.4,4.00826]
[1732029861927,3.23309,3093.1,3092.5,3.23357]
[1732029862126,3.23309,3093.1,3092.4,4.0083]
[1732029862370,3.2334,3092.8,3092.4,0.7746]
[1732029862574,3.23348,3092.7,3092.4,0.7746]
[1732029862931,3.23315,3093.0,3092.4,0.7746]
[1732029863150,3.0,3093.1,3092.4,0.7746]
[1732029863371,3.23317,3093.0,3092.4,4.00825]
[1732029863776,4.525867,3093.5,3092.4,4.00825]
[1732029863777,4.63195903,3093.5,3092.5,0.7848]
[1732029864060,4.00645444,3093.8,3092.5,0.7848]
[1732029864061,3.23297,3093.2,3092.6,3.78346]
[1732029864262,3.23297,3093.2,3092.6,7.01691]
[1732029864470,3.23268,3093.4,3092.8,3.23331]
[1732029864627,3.23264,3093.5,3092.9,3.23312]
[1732029864997,3.23264,3093.5,3093.0,3.23309]
[1732029865172,3.23274,3093.4,3092.9,0.55]
[1732029865325,3.23239,3093.7,3093.0,3.2331]
[1732029865529,3.23269,3093.4,3092.9,0.55]
[1732029865832,3.23269,3093.4,3092.9,3.78319]
[1732029866040,3.23265,3093.5,3093.0,0.7555]
[1732029866268,3.23278,3093.4,3093.0,0.7555]
[1732029866472,3.23295,3093.2,3092.6,1.3055]
[1732029866639,3.2331,3093.0,3092.6,1.3055]
[1732029867168,3.23327,3092.9,3092.6,0.7555]
[1732029867387,3.2331,3093.0,3092.6,0.7555]
[1732029867667,3.23304,3093.1,3092.6,0.7555]
[1732029868084,3.23294,3093.2,3092.6,0.7555]
[1732029868262,3.23311,3093.0,3092.6,0.7555]
[1732029868465,3.3761,3093.6,3092.7,3.78341]
[1732029868646,3.23295,3093.2,3092.7,0.55]
[1732029869150,3.23307,3093.1,3092.7,0.55]
[1732029869768,3.23276,3093.4,3092.7,3.78341]
[1732029869969,3.23278,3093.4,3092.9,0.55]
[1732029870347,3.2328,3093.3,3092.9,0.55]
[1732029870551,3.23254,3093.6,3092.9,0.55]
[1732029870891,3.23279,3093.3,3092.9,0.55]
[1732029871442,3.2327,3093.4,3092.9,0.55]
[1732029871443,3.23269,3093.4,3092.9,0.55]
[1732029871643,3.23269,3093.4,3092.9,1.0554721]
[1732029872275,3.23262,3093.5,3092.9,1.0554721]
[1732029872456,3.23262,3093.5,3093.0,3.23308]
[1732029872659,3.23262,3093.5,3092.9,0.55]
[1732029872660,3.23262,3093.5,3092.9,3.78315]
[1732029872869,6.46528,3093.5,3092.9,3.78315]
[1732029873064,3.2327,3093.4,3092.9,0.55]
[1732029873278,3.23262,3093.5,3092.9,3.78317]
[1732029873583,3.23241,3093.7,3092.9,1.010092]
[1732029873797,3.23228,3093.8,3093.2,3.78284]
[1732029873963,3.23228,3093.8,3093.4,0.55]
[1732029874157,3.2322,3093.9,3093.4,0.55]
[1732029874491,3.23227,3093.8,3093.4,0.55]
[1732029874848,3.23244,3093.7,3093.2,0.55]
[1732029875350,3.31028663,3094.3,3093.2,4.561701]
[1732029875351,3.23227,3093.8,3093.2,4.561701]
[1732029875550,3.23227,3093.8,3093.2,3.78283]
[1732029875760,3.2325,3093.6,3093.2,0.55]
[1732029875952,3.23238,3093.7,3093.2,3.78288]
[1732029876269,3.23229,3093.8,3093.2,3.78288]
[1732029876487,3.23248,3093.6,3093.2,0.55]
[1732029876688,3.23269,3093.4,3093.1,0.7727]
[1732029876898,3.23261,3093.5,3093.1,0.7727]
[1732029877051,3.23272,3093.4,3093.1,0.7727]
[1732029877364,3.23303,3093.1,3092.7,0.8292]
[1732029877552,2.93418663,3093.7,3092.8,0.406267]
[1732029877749,3.23266,3093.5,3092.9,3.23316]
[1732029878368,3.23274,3093.4,3092.9,3.23316]
[1732029878764,3.23274,3093.4,3092.8,3.7833]
[1732029878960,3.23285,3093.3,3092.8,0.55]
[1732029879395,3.23292,3093.2,3092.8,0.55]
[1732029879799,3.23301,3093.1,3092.8,0.55]
[1732029879998,3.23283,3093.3,3092.8,0.55]
[1732029880215,3.23292,3093.2,3092.8,0.55]
[1732029880890,3.233,3093.1,3092.8,0.55]
[1732029881217,3.23359,3092.6,3092.4,0.7941]
[1732029881539,6.46721,3092.6,3092.4,0.7941]
[1732029881686,3.23359,3092.6,3092.4,0.7941]
[1732029882486,3.23359,3092.6,3092.5,0.55]
[1732029882685,3.23359,3092.6,3092.4,0.7941]
[1732029883096,3.23372,3092.5,3092.1,0.7566]
[1732029883299,3.23394,3092.2,3092.1,0.7566]
[1732029883512,3.23441,3091.8,3091.4,0.7566]
[1732029883804,6.16814663,3092.2,3091.4,0.7566]
[1732029884037,3.23439,3091.8,3091.4,0.7566]
[1732029884355,3.23446,3091.7,3091.4,0.7566]
[1732029884800,3.23421,3092.0,3091.4,0.7566]
[1732029885000,3.23443,3091.8,3091.4,0.7566]
[1732029885208,3.23421,3092.0,3091.4,3.9913]
[1732029885209,3.23418,3092.0,3091.4,3.9913]
[1732029885418,3.23404,3092.2,3091.6,4.02196]
[1732029885614,3.23412,3092.1,3091.7,0.55]
[1732029885798,3.23412,3092.1,3091.7,0.992109]
[1732029885998,3.23415,3092.0,3091.7,0.442109]
[1732029886205,3.23415,3092.0,3091.6,0.7875]
[1732029886438,3.23412,3092.1,3091.6,0.7875]
[1732029886598,6.46825,3092.1,3091.6,0.7875]
[1732029886795,3.23412,3092.1,3091.6,0.7875]
[1732029886998,6.46825,3092.1,3091.7,0.402216]
[1732029887240,3.23412,3092.1,3091.7,0.402216]
[1732029887424,3.23421,3092.0,3091.7,0.402216]
[1732029888207,3.23421,3092.0,3091.6,0.7875]
[1732029888541,3.2343,3091.9,3091.6,0.7875]
[1732029889335,3.23417,3092.0,3091.6,0.7875]
[1732029889641,3.23412,3092.1,3091.6,1.189717]
[1732029889851,3.23431,3091.9,3091.6,0.7875]
[1732029890756,6.16789663,3092.5,3091.7,3.78446]
[1732029891043,3.23381,3092.4,3091.9,3.78424]
[1732029891344,3.23381,3092.4,3092.0,0.7864]
[1732029892102,2.93418663,3092.8,3092.0,0.7864]
[1732029892306,3.23404,3092.1,3092.0,0.7864]
[1732029892710,6.46805,3092.2,3092.0,0.7864]
[1732029892912,3.23402,3092.2,3092.0,0.7864]
[1732029893138,6.16753663,3092.8,3092.0,0.7864]
[1732029893341,3.23367,3092.5,3092.0,0.7864]
[1732029893545,3.23325,3092.9,3092.1,0.55]
[1732029893852,3.23375,3092.4,3092.0,0.7864]
[1732029894331,3.23354,3092.6,3092.0,4.4226]
[1732029894533,3.23342,3092.7,3092.0,1.18846]
[1732029894846,3.23342,3092.7,3092.1,3.23397]
[1732029894847,3.23348,3092.7,3092.1,3.23397]
[1732029895050,3.23352,3092.6,3092.0,4.02053]
[1732029895264,3.23348,3092.7,3092.1,0.55]
[1732029895441,3.2336,3092.6,3092.1,0.55]
[1732029896314,3.23348,3092.7,3092.2,3.23385]
[1732029898446,3.23348,3092.7,3092.1,0.55]
[1732029898758,3.23348,3092.7,3092.1,1.0795974]
[1732029899083,3.23348,3092.7,3092.0,0.7864]
[1732029899084,3.23392,3092.3,3092.0,0.7864]
[1732029899375,3.23404,3092.1,3092.0,0.7864]
[1732029899543,3.23392,3092.3,3092.0,0.7864]
[1732029899747,6.46785,3092.3,3092.0,0.7864]
[1732029899947,3.23392,3092.3,3092.0,0.7864]
[1732029900145,2.93418663,3092.7,3092.0,0.7864]
[1732029900347,2.93418663,3092.7,3091.6,0.8325]
[1732029900348,2.93418663,3092.4,3091.6,0.8325]
[1732029900547,2.93418663,3092.4,3091.3,3.23482]
[1732029900548,3.23394,3092.2,3091.3,0.8061]
[1732029900750,3.23456,3091.7,3091.3,1.210213]
[1732029900984,3.23456,3091.7,3091.3,0.8061]
[1732029901338,6.46819,3092.1,3091.5,3.23461]
[1732029901708,3.72094555,3092.3,3091.6,0.323461]
[1732029901709,3.23431,3091.9,3091.6,0.323461]
[1732029901877,3.23478,3091.4,3091.3,0.8061]
[1732029902128,3.23499,3091.2,3090.8,0.7534]
[1732029902255,3.23485,3091.4,3090.8,1.152297]
[1732029902581,6.46973,3091.4,3090.8,3.98878]
[1732029902733,3.23485,3091.4,3090.8,4.711162]
[1732029902938,3.23485,3091.4,3090.8,7.22406]
[1732029903147,3.23485,3091.4,3090.8,3.98873]
[1732029903573,3.23501,3091.2,3090.8,0.7534]
[1732029904833,3.23512,3091.1,3090.8,0.7534]
[1732029905507,3.23462,3091.6,3090.9,0.55]
[1732029905662,3.23462,3091.6,3091.2,0.7873]
[1732029905861,3.23442,3091.8,3091.2,0.7873]
[1732029906077,3.23418,3092.0,3091.5,3.23461]
[1732029906391,3.23418,3092.0,3091.7,0.7873]
[1732029906630,3.23436,3091.8,3091.4,0.55]
[1732029906755,3.23387,3092.3,3091.3,0.7873]
[1732029906756,2.93418663,3092.1,3091.3,0.7873]
[1732029906953,3.23452,3091.7,3091.3,0.7873]
[1732029908304,3.23464,3091.6,3091.3,0.7873]
[1732029908658,3.23435,3091.9,3091.3,0.7873]
[1732029908911,3.23437,3091.8,3091.3,4.02216]
[1732029909058,3.23434,3091.9,3091.4,3.23477]
[1732029909491,3.23409,3092.1,3091.4,3.23477]
[1732029909817,3.23428,3091.9,3091.5,0.55]
[1732029910170,3.23464,3091.6,3091.3,0.7873]
[1732029910520,3.23509,3091.1,3091.0,0.7539]
[1732029910690,3.23496,3091.3,3091.0,0.7539]
[1732029910883,3.23509,3091.1,3090.6,0.55]
[1732029911141,3.23544,3090.8,3090.5,0.7539]
[1732029911443,3.23524,3091.0,3090.5,0.7539]
[1732029911729,3.23532,3090.9,3090.5,0.7539]
[1732029911913,3.23531,3090.9,3090.5,0.7539]
[1732029912094,3.23558,3090.7,3090.5,0.7539]
[1732029912298,3.23547,3090.8,3090.5,0.7539]
[1732029912605,3.23552,3090.7,3090.5,0.7539]
[1732029913007,3.23534,3090.9,3090.5,0.7539]
[1732029913182,3.23552,3090.7,3090.5,0.7539]
[1732029913382,3.23561,3090.6,3090.5,0.7539]
[1732029913794,3.23593,3090.3,3089.8,0.762]
[1732029914007,3.23593,3090.3,3089.8,1.386652]
[1732029914295,3.23625,3090.0,3089.8,0.762]
[1732029914594,3.23615,3090.1,3089.8,0.762]
[1732029914777,0.3761,3090.6,3089.8,0.762]
[1732029914778,3.23605,3090.2,3089.8,0.762]
[1732029915179,3.23594,3090.3,3089.8,0.762]
[1732029915378,3.23594,3090.3,3089.8,1.161859]
[1732029915622,3.23603,3090.2,3089.8,1.161859]
[1732029915824,3.23573,3090.5,3089.8,1.161859]
[1732029916122,3.23574,3090.5,3090.0,3.23614]
[1732029916338,3.23542,3090.8,3090.2,3.23602]
[1732029916538,3.2353,3090.9,3090.4,3.23581]
[1732029916685,3.23542,3090.8,3090.3,0.8157]
[1732029916897,3.23553,3090.7,3090.3,1.220879]
[1732029917138,3.23561,3090.6,3090.3,1.220879]
[1732029917440,3.23542,3090.8,3090.3,1.220879]
[1732029917652,6.47051,3091.0,3090.3,1.220879]
[1732029917938,3.23523,3091.0,3090.4,3.2358]
[1732029918168,3.23516,3091.1,3090.6,3.23558]
[1732029918351,3.23516,3091.1,3090.6,3.937718]
[1732029919013,3.23512,3091.1,3090.6,0.702138]
[1732029919212,3.23536,3090.9,3090.6,0.702138]
[1732029919413,3.23536,3090.9,3090.3,0.8157]
[1732029919647,3.23558,3090.7,3090.3,0.8157]
[1732029919966,3.23531,3090.9,3090.3,0.8157]
[1732029920297,3.23531,3090.9,3090.4,3.640986]
[1732029920541,3.23531,3090.9,3090.4,3.23582]
[1732029920745,3.23513,3091.1,3090.5,3.78571]
[1732029920962,3.23524,3091.0,3090.6,0.378571]
[1732029921140,3.23535,3090.9,3090.5,0.55]
[1732029921346,3.2351,3091.1,3090.5,3.23566]
[1732029921541,3.2351,3091.1,3090.6,0.378566]
[1732029921856,3.2351,3091.1,3090.6,3.614146]
[1732029922025,6.46987,3091.3,3090.7,0.7678]
[1732029922235,3.23506,3091.2,3090.8,0.4381946]
[1732029922427,3.23472,3091.5,3090.8,3.23534]
[1732029922632,3.23472,3091.5,3090.7,0.7678]
[1732029922633,3.23495,3091.3,3090.7,0.7678]
[1732029922877,3.23512,3091.1,3090.7,1.5295496]
[1732029923024,3.2353,3090.9,3090.7,0.7678]
[1732029923229,3.23513,3091.1,3090.7,0.7678]
[1732029923730,3.2352,3091.0,3090.7,0.7678]
[1732029924162,3.23536,3090.9,3090.3,0.55]
[1732029924432,3.23551,3090.7,3090.3,0.873592]
[1732029924983,3.23551,3090.7,3090.3,0.55]
[1732029925181,3.33812492,3091.6,3090.2,0.8057]
[1732029925335,3.23498,3091.3,3090.4,0.55]
[1732029925536,3.23502,3091.2,3090.7,3.2355]
[1732029925846,3.23502,3091.2,3090.6,3.23553]
[1732029926051,3.23502,3091.2,3090.6,3.937647]
[1732029926357,3.23498,3091.3,3090.7,3.23543]
[1732029926526,3.2347,3091.5,3090.9,3.2353]
[1732029926928,3.0,3091.5,3091.1,3.23508]
[1732029927543,3.23459,3091.6,3091.1,3.23508]
[1732029927765,3.33812492,3092.2,3091.3,0.55]
[1732029927942,0.63318119,3092.7,3092.1,3.23402]
[1732029927943,6.57159492,3092.7,3092.1,3.23402]
[1732029928145,3.23337,3092.8,3091.9,4.04636]
[1732029928385,6.46675,3092.8,3092.1,3.23396]
[1732029928584,6.46609,3093.1,3092.3,0.55]
[1732029928769,3.23301,3093.1,3092.6,0.781]
[1732029929089,3.23333,3092.8,3092.6,0.781]
[1732029929451,3.34520858,3093.4,3093.1,3.23291]
[1732029929793,3.2322,3093.9,3093.3,3.23277]
[1732029929967,3.23199,3094.1,3093.3,3.23277]
[1732029930171,3.23199,3094.1,3093.2,0.781]
[1732029930172,3.23187,3094.2,3093.6,3.23247]
[1732029930330,3.60783,3094.4,3093.7,3.2323]
[1732029930534,3.23173,3094.4,3093.7,3.2323]
[1732029930779,3.23185,3094.2,3093.6,0.55]
[1732029930948,3.23167,3094.4,3093.6,0.55]
[1732029931134,3.23133,3094.7,3093.6,0.55]
[1732029931331,3.23202,3094.1,3093.3,3.23276]
[1732029931587,3.6092287,3094.4,3093.4,0.55]
[1732029931736,3.23183,3094.3,3093.6,3.23237]
[1732029932238,3.23166,3094.4,3093.8,3.23226]
[1732029932442,3.0,3094.3,3093.8,3.23226]
[1732029932648,3.23137,3094.7,3094.0,4.00612]
[1732029932954,3.23155,3094.5,3094.0,4.00612]
[1732029933177,3.2316,3094.5,3094.0,0.7741]
[1732029933379,3.23154,3094.5,3094.0,0.7741]
[1732029933752,3.23192,3094.2,3093.6,0.55]
[1732029933967,3.23165,3094.4,3093.7,3.23229]
[1732029934187,3.23174,3094.3,3093.7,3.23229]
[1732029934691,3.23174,3094.3,3093.6,0.55]
[1732029934982,3.23185,3094.2,3093.6,3.78245]
[1732029935185,3.23192,3094.2,3093.6,3.78245]
[1732029935566,3.23203,3094.1,3093.6,0.55]
[1732029935739,3.23174,3094.3,3093.7,3.23236]
[1732029935940,3.23136,3094.7,3093.7,0.456476]
[1732029936144,3.23146,3094.6,3094.0,3.23202]
[1732029936592,3.23129,3094.8,3094.1,0.7564]
[1732029936795,3.23129,3094.8,3094.2,3.23181]